Cogmind - Beta 14 @@@ ROGUE MODE // 2024.12.14 @ 11:49:25 Player: Dzuchun Result: Destroyed by S-10 Pest with Light Assault Rifle Performance ------------- Evolutions (2) 1000 Regions Visited (5) 1000 Robots Destroyed (35) 175 Value Destroyed (742) 742 Prototype IDs (2) 40 Alien Tech Used (0) 0 Bonus (289) 289 TOTAL SCORE: 3246 Bonus ------- Follower Combat Kills 7 Aligned with FarCom 300 Friendly Fire -18 Cogmind --------- Core Integrity 0/550 Matter 379/400 Energy 63/100 System Corruption 10% Temperature Cool (0) Movement Hovering (120) Ox1 Location -8/Materials Parts ------- > --- POWER (1) -------- (None) > --- PROPULSION (4) --- Airjet > --- UTILITY (4) ------ Medium Matter Pod System Shield > --- WEAPON (2) ------- Light EM Pulse Cannon Heavy Flail > --- INVENTORY (5) ---- Mining Laser Peak State ------------ > --- POWER ------------ Light Deuterium Engine > --- PROPULSION ------- Improved Hover Unit Improved Hover Unit Improved Hover Unit Improved Hover Unit > --- UTILITY ---------- Weight Redist. System ECM Suite Utility Shielding Hacking Suite > --- WEAPON ----------- Light Cannon Light Cannon > --- INVENTORY -------- Light Deuterium Engine Small Laser EM Pulse Cannon EM Pulse Cannon Mining Laser [Rating: 21] Favorites ----------- Power Ion Engine Engine Ion Engine Power Core Light Nuclear Core Propulsion Aluminum Leg Leg Aluminum Leg Wheel Wheel Hover Unit Improved Hover Unit Utility Hacking Suite Device Weight Redist. System Storage High-capacity Storage Unit Hackware Hacking Suite Protection Backup Plating I Weapon Light Cannon Energy Gun Medium Laser Energy Cannon EM Pulse Cannon Ballistic Gun Assault Rifle Ballistic Cannon Light Cannon Launcher Grenade Launcher Special Weapon Mining Laser Impact Weapon Heavy Flail Build | -11 -10 -10 -10 -9 -8 ------- Run | Yrd Mat Min Exi Min Mat Slots Evolved 4 | . . . . . 4 Power . | . . . . . . Propulsion 2 | . . . . . 2 Utility 2 | . . . . . 2 Weapon . | . . . . . . Parts Attached 64 | 8 7 4 . 13 32 Power 8 | 1 1 . . 3 3 Engine 7 | 1 1 . . 2 3 Core 1 | . . . . 1 . Reactor . | . . . . . . Propulsion 17 | 2 . . . 3 12 Treads . | . . . . . . Leg 9 | 2 . . . 3 4 Wheel 1 | . . . . . 1 Hover 7 | . . . . . 7 Flight . | . . . . . . Utility 11 | 2 2 . . 3 4 Device 5 | 1 . . . 3 1 Storage 3 | 1 1 . . . 1 Processor . | . . . . . . Hackware 2 | . 1 . . . 1 Protection 1 | . . . . . 1 Artifact . | . . . . . . Weapon 28 | 3 4 4 . 4 13 Energy Gun 5 | 1 2 . . 2 . Energy Cannon 4 | . . . . . 4 Ballistic Gun 2 | 2 . . . . . Ballistic Cannon 11 | . 2 3 . 2 4 Launcher 1 | . . . . . 1 Special Weapon 4 | . . 1 . . 3 Impact Weapon 1 | . . . . . 1 Slashing Weapon . | . . . . . . Piercing Weapon . | . . . . . . Special Melee Weapon . | . . . . . . Unidentified Prototypes 2 | . . . . 2 . Parts Lost 25 | . 1 . . 6 18 Power 4 | . 1 . . 1 2 Propulsion 11 | . . . . 3 8 Utility 4 | . . . . . 4 Weapon 6 | . . . . 2 4 Highest Loss Streak 10 | . 1 . . 4 10 To Critical Strikes . | . . . . . . Average Slot Usage (%) 92 | . 100 100 100 97 58 Engine 10 | . 14 14 14 7 6 Core 1 | . . . . 5 . Leg 23 | . 28 28 28 25 3 Hover 3 | . . . . . 21 Device 1 | . 1 . . . 7 Storage 11 | . 14 14 14 13 . Hackware 11 | . 12 14 14 14 . Energy Gun 2 | . 10 . . 2 . Ballistic Gun 2 | . 11 . . . . Ballistic Cannon 19 | . 6 27 28 25 8 Peak Build Rating 21 | 7 10 10 11 20 21 Average Rating 10 | 6 9 9 10 12 12 On Entrance 7 | . 7 10 10 11 8 Naked Turns . | . . . . . . Heaviest Build 51 | 14 51 51 51 51 16 Greatest Support 37 | 20 20 20 20 20 37 Greatest Overweight (x) 5 | 2 2 2 2 5 2 Average Overweight (x) 1 | . . 2 2 2 . Largest Inventory Capacity 20 | 8 20 20 20 20 5 Average Capacity 15 | 7 13 20 20 19 5 Most Carried 17 | 4 13 13 15 17 5 Average Carried 11 | 1 9 12 12 15 3 Final Capacity 20 | 8 20 20 20 5 5 Final Carried 15 | 4 12 12 15 5 1 Class Distribution -------------------- 90% | Mutant 9% | Scavenger-Mutant Dominant Class ---------------- Mutant | -10/Materials Mutant | -10/Mines Mutant | -10/Exiles Mutant | -9/Mines Mutant | -8/Materials Resources | -11 -10 -10 -10 -9 -8 ----------- Run | Yrd Mat Min Exi Min Mat Matter Collected 1445 | 329 201 70 . 338 507 Remotely . | . . . . . . Salvage Created 820 | 121 264 28 . 220 187 Parts 65 | 10 20 5 . 16 14 Haulers Intercepted 2 | . 2 . . . . Recyclers Shooed 2 | 1 . . . . 1 Parts Field Recycled . | . . . . . . Retrieved Matter . | . . . . . . Parts Self-Destructed . | . . . . . . Prevented . | . . . . . . Kills | -11 -10 -10 -10 -9 -8 ------- Run | Yrd Mat Min Exi Min Mat Combat Hostiles Destroyed 26 | . 3 3 . 13 7 Guns 4 | . 3 . . 1 . Cannons 18 | . . 3 . 12 3 AOE 4 | . . . . . 4 Classes Destroyed 12 | 2 4 1 . 3 2 Worker 2 | . . . . 1 1 Builder 1 | . . . . . 1 Tunneler 3 | 3 . . . . . Hauler 2 | . 2 . . . . Recycler 1 | 1 . . . . . Operator 1 | . 1 . . . . Watcher 1 | . 1 . . . . Swarmer 12 | . . 3 . 6 3 Grunt 10 | . 3 . . 4 3 Brawler 1 | . . . . 1 . Hunter 1 | . . . . . 1 Assembled 2 | . . . . 2 . Best Kill Streak 5 | 2 2 3 . 3 5 Combat Bots Only 4 | . 2 3 . 3 4 Max Kills in Single Turn 3 | 1 1 1 . 1 3 Gunslinging . | . . . . . . Exploded 2 | . . . . . 2 Melee . | . . . . . . Uniques/NPCs Destroyed . | . . . . . . Combat | -11 -10 -10 -10 -9 -8 -------- Run | Yrd Mat Min Exi Min Mat Hostile Shots Fired 278 | . 36 9 . 72 161 Missed 98 | . 6 6 . 26 60 Damage Taken 3052 | . 396 26 . 692 1938 Core 783 | . 98 . . 135 550 Absorbed by Shields . | . . . . . . Redirected to Shielding 39 | . . . . . 39 Regen/Repaired (Parts) 39 | . . . . . 39 Core Remaining (%) 53 | 100 . . . 6 . Volleys Fired 136 | 17 34 8 . 43 34 Largest 2 | 2 2 2 . 2 2 Hottest 126 | 40 90 100 . 80 126 Shots Fired 245 | 34 68 13 . 87 43 Gun 107 | 34 68 . . 5 . Cannon 119 | . . 10 . 82 27 Launcher 3 | . . . . . 3 Special 16 | . . 3 . . 13 Kinetic 205 | 34 55 10 . 82 24 Thermal 34 | . 13 3 . 5 13 Explosive 3 | . . . . . 3 Electromagnetic 3 | . . . . . 3 Robot Hit Streak 10 | 7 9 2 . 6 10 Robot Miss Streak 4 | 3 3 2 . 4 1 Penetration Max . | . . . . . . Secondary Targets 1 | . 1 . . . . Max Gunslinging Chain 1 | . 1 . . . . Shots Hit Robots 144 | 22 46 4 . 49 23 Core Hits 66 | 8 18 3 . 18 19 Critical Kills . | . . . . . . Critical Parts Destroyed . | . . . . . . Critical Strikes 2 | . . . . 1 1 Blast 2 | . . . . 1 1 Melee Attacks 1 | . . . . . 1 Impact 1 | . . . . . 1 Slashing . | . . . . . . Piercing . | . . . . . . Sneak Attacks . | . . . . . . Combat Hostiles . | . . . . . . Follow-up Attacks . | . . . . . . Damage Inflicted 2434 | 228 509 69 . 869 759 Guns 782 | 228 509 . . 45 . Cannons 1233 | . . 69 . 824 340 Explosions 323 | . . . . . 323 Melee . | . . . . . . Ramming 96 | . . . . . 96 Kinetic 1783 | 228 375 69 . 824 287 Thermal 179 | . 134 . . 45 . Explosive 323 | . . . . . 323 Electromagnetic 53 | . . . . . 53 Impact . | . . . . . . Slashing . | . . . . . . Piercing . | . . . . . . Highest Corruption 10 | . . . . 10 10 Average Corruption 9 | . . . . 9 8 Corruption Purged . | . . . . . . Corruption Blocked . | . . . . . . Effects 27 | . . . . 7 20 Message Errors 3 | . . . . . 3 Matter Fused 8 | . . . . 3 5 Heat Flow Errors 4 | . . . . 1 3 Energy Discharges 3 | . . . . . 3 Parts Rejected 1 | . . . . . 1 Parts Fused 1 | . . . . 1 . Data Loss (minor) 5 | . . . . 1 4 Data Loss (major) 1 | . . . . . 1 Misfires 1 | . . . . 1 . Overload Shots . | . . . . . . Overflow Damage . | . . . . . . Projectiles . | . . . . . . Explosions . | . . . . . . Melee . | . . . . . . Knockbacks 21 | . . . . 14 7 Impact 1 | . . . . . 1 Kinetic 20 | . . . . 14 6 Secondary . | . . . . . . Self-Inflicted Damage 110 | . . . . . 110 Shots 3 | . . . . . 3 Rammed 20 | . . . . . 20 Targets Rammed 27 | . . . . . 27 Kicked 7 | . . . . . 7 Crushed . | . . . . . . Highest Temperature 222 | . 38 45 . 212 222 Average Temperature 37 | . 14 17 . 45 44 Received Heat Transfer 1206 | . 237 . . 267 702 Siege Activations . | . . . . . . Robots Corrupted . | . . . . . . Combat Hostiles . | . . . . . . Parts Fried . | . . . . . . Impact Corruptions . | . . . . . . Robots Melted . | . . . . . . Combat Hostiles . | . . . . . . Parts Melted . | . . . . . . Heat Transferred 483 | . 383 . . 100 . Parts Sabotaged . | . . . . . . Parts Stolen . | . . . . . . Parts Stripped . | . . . . . . Power Chain Reactions . | . . . . . . Alert | -11 -10 -10 -10 -9 -8 ------- Run | Yrd Mat Min Exi Min Mat Peak Influence 170 | 20 163 82 . 115 170 Initial 13 | . 13 10 . . . Average 46 | 6 60 25 . 54 37 Maximum Alert Level . | . . . . . . Low Security (%) 100 | 100 100 100 . 100 100 Level 1 . | . . . . . . Level 2 . | . . . . . . Level 3 . | . . . . . . Level 4 . | . . . . . . Level 5 . | . . . . . . High Security . | . . . . . . Max Security . | . . . . . . Squads Dispatched 3 | . 2 . . . 1 Investigation 2 | . 1 . . . 1 Extermination . | . . . . . . Reinforcement 1 | . 1 . . . . Assault . | . . . . . . Garrison . | . . . . . . Intercept . | . . . . . . Searches Triggered . | . . . . . . Construction Impeded . | . . . . . . Haulers Reinforced . | . . . . . . Active Scanning Responses . | . . . . . . Cargo Convoy Interrupts . | . . . . . . Stealth | -11 -10 -10 -10 -9 -8 --------- Run | Yrd Mat Min Exi Min Mat Distress Signals 5 | . 1 . . . 4 Communications Jammed . | . . . . . . Distress Signals . | . . . . . . Times Spotted 51 | . 13 3 . 17 18 Peak Tracking Total 9 | . 5 3 . 4 9 Tactical Retreats 6 | . . . . 4 2 Traps | -11 -10 -10 -10 -9 -8 ------- Run | Yrd Mat Min Exi Min Mat Traps Triggered . | . . . . . . Indirectly . | . . . . . . Trap Hack Attempts . | . . . . . . Triggered . | . . . . . . Disarmed . | . . . . . . Reprogrammed . | . . . . . . Reused . | . . . . . . Traps Extracted . | . . . . . . Installed . | . . . . . . Triggered . | . . . . . . Machines | -11 -10 -10 -10 -9 -8 ---------- Run | Yrd Mat Min Exi Min Mat Machines Disabled 4 | . . . . 1 3 Max in Single Turn 1 | . . . . 1 1 Machines Repaired . | . . . . . . Machines Dismantled . | . . . . . . Machines Sabotaged . | . . . . . . Overloaded Fab Kills . | . . . . . . Hacking | -11 -10 -10 -10 -9 -8 --------- Run | Yrd Mat Min Exi Min Mat Machines Accessed 6 | . 3 1 . 1 1 Terminals 4 | . 3 1 . . . Fabricators . | . . . . . . Repair Stations 1 | . . . . . 1 Recycling Units . | . . . . . . Scanalyzers . | . . . . . . Garrison Access . | . . . . . . Total Hacks 16 | . 10 1 . 1 4 Successful 8 | . 3 1 . 1 3 Failed 8 | . 7 . . . 1 Catastrophic . | . . . . . . Database Lockouts . | . . . . . . Manual 4 | . 2 . 2 . . Terminals 11 | . 10 1 . . . Fabricators . | . . . . . . Repair Stations 4 | . . . . . 4 Recycling Units . | . . . . . . Scanalyzers . | . . . . . . Garrison Access . | . . . . . . Terminal Hacks 5 | . 3 1 . 1 . Open Door 1 | . . . . 1 . Alert Level 1 | . 1 . . . . Locate Traps 1 | . 1 . . . . Dispatch Records 1 | . 1 . . . . Zone Layout 1 | . . 1 . . . Fabricator Hacks . | . . . . . . Repair Station Hacks 3 | . . . . . 3 Scan Component 1 | . . . . . 1 Repair 1 | . . . . . 1 Refit 1 | . . . . . 1 Recycling Unit Hacks . | . . . . . . Scanalyzer . | . . . . . . Garrison Access Hacks . | . . . . . . Unauthorized Hacks . | . . . . . . Terminals . | . . . . . . Fabricators . | . . . . . . Repair Stations . | . . . . . . Recycling Units . | . . . . . . Scanalyzers . | . . . . . . Garrison Access . | . . . . . . Data Cores Recovered 1 | . 1 . . . . Used 1 | . 1 . . . . Hacking Detections 3 | . 2 . . . 1 Full Trace Events 3 | . 2 . . . 1 Feedback Events . | . . . . . . Feedback Blocked . | . . . . . . Robot Schematics Acquired . | . . . . . . Robots Built . | . . . . . . Authchips . | . . . . . . Time . | . . . . . . Total Robot Build Rating . | . . . . . . Part Schematics Acquired . | . . . . . . Parts Built . | . . . . . . Authchips . | . . . . . . Time . | . . . . . . Total Part Build Rating . | . . . . . . Parts Repaired 1 | . . . . . 1 Time 36 | . . . . . 36 Parts Recycled . | . . . . . . Recycled Matter . | . . . . . . Retrieved Matter . | . . . . . . Retrieved Components . | . . . . . . Parts Scanalyzed . | . . . . . . Part Schematics Acquired . | . . . . . . Parts Damaged . | . . . . . . Bothacking | -11 -10 -10 -10 -9 -8 ------------ Run | Yrd Mat Min Exi Min Mat Used RIF Installer . | . . . . . . Robots Hacked . | . . . . . . Non-combat . | . . . . . . Combat . | . . . . . . Robot Hacks Applied . | . . . . . . Relay Couplers Released . | . . . . . . Fabnet Peak Effective % . | . . . . . . Robots Rewired . | . . . . . . Allies Hacked . | . . . . . . Hacks Repelled . | . . . . . . Allies | -11 -10 -10 -10 -9 -8 -------- Run | Yrd Mat Min Exi Min Mat Total Allies 2 | . . . . 2 . Largest Group 2 | . . . . 2 . Highest-Rated Group 43 | . . . . 43 . Highest-Rated Ally 31 | . . . . 31 . Total Orders . | . . . . . . Ally Attacks 10 | . . . . 10 . Total Damage 103 | . . . . 103 . Kills 1 | . . . . 1 . Allies Corrupted . | . . . . . . Allies Melted . | . . . . . . Intel | -11 -10 -10 -10 -9 -8 ------- Run | Yrd Mat Min Exi Min Mat Robot Analysis Total . | . . . . . . Derelict Logs Recovered 2 | . . 1 . 1 . Drone Launches . | . . . . . . Drone Recoveries . | . . . . . . Exploration | -11 -10 -10 -10 -9 -8 ------------- Run | Yrd Mat Min Exi Min Mat Turns Passed 3971 | 137 762 487 780 1226 579 Spaces Moved 1645 | 64 388 174 300 365 354 Core 11 | 5 . . . . 6 Treads . | . . . . . . Legs 1346 | 59 388 174 300 365 60 Wheels 2 | . . . . . 2 Hover 286 | . . . . . 286 Flight . | . . . . . . Fastest Speed 48 | 50 120 260 260 190 48 Average Speed 191 | 116 161 260 260 268 68 Slowest Speed 470 | 150 260 260 260 470 190 Overloaded Moves . | . . . . . . Propulsion Burnouts . | . . . . . . Robots Hopped . | . . . . . . Cave-ins Triggered 1 | . . . . . 1 Exploration Rate (%) 40 | 5 50 35 62 68 22 Regions Visited 5 Branch Regions 3 Pre-discovered Areas 1 | . . . . 1 . Known Exits Taken . | . . . . . . Unknown Exits Taken 5 | 1 1 1 1 1 . Scrap Searched 2 | . . 1 . 1 . Spaces Dug 16 | . . 3 . . 13 Terrain Destroyed 32 | . . 3 . . 29 Melee . | . . . . . . Projectile 16 | . . 3 . . 13 AOE 16 | . . . . . 16 Terrain Rammed . | . . . . . . Walls Destroyed . | . . . . . . Machines Disabled . | . . . . . . Actions | -11 -10 -10 -10 -9 -8 --------- Run | Yrd Mat Min Exi Min Mat Total 2182 | 92 464 190 301 527 608 Wait 257 | . 12 4 . 96 145 Move 1640 | 63 387 173 299 364 354 Hop . | . . . . . . Pick Up 34 | 4 16 . 2 4 8 Fast Attach 23 | 7 1 . . 3 12 Attach 14 | . . 1 . 6 7 Detach 1 | . . 1 . . . Swap 27 | 1 6 3 . 4 13 Drop 22 | . 8 . . 7 7 Fire 136 | 17 34 8 . 43 34 Melee 1 | . . . . . 1 Ram 20 | . . . . . 20 Kick 7 | . . . . . 7 Crush . | . . . . . . Escape Stasis . | . . . . . . Rewire . | . . . . . . Trap . | . . . . . . Miscellaneous . | . . . . . . Route ------- -11/Scrapyard -10/Materials (discovered 2 exits: *Min x2) -10/Mines -10/Exiles (discovered 2 exits: *Min x2) -9/Mines -8/Materials History --------- Turn | Location | Event 6 | -11/Scrapyard | Discovered new exit (range 16) 138 | -11/Scrapyard | Entered Materials 344 | -10/Materials | Build established: Mutant 345 | -10/Materials | Discovered new exit (range 8) 822 | -10/Materials | Discovered new exit (range 5) 900 | -10/Materials | Entered Mines 963 | -10/Mines | Learned Materials stockpile data 1374 | -10/Mines | Deemed a non-threat by the Exiles lab entrance 1377 | -10/Mines | Discovered new exit (range 5) 1387 | -10/Mines | Entered Exiles 1421 | -10/Exiles | Discovered new exit (range 15) 1499 | -10/Exiles | Met 8R-AWN 1543 | -10/Exiles | Met EX-HEX 1616 | -10/Exiles | Met EX-BIN 1653 | -10/Exiles | Aligned with FarCom system 1655 | -10/Exiles | Given EX-Vault access code 1780 | -10/Exiles | Opened EX-Vault 1788 | -10/Exiles | Found Prototype Device 1875 | -10/Exiles | Warned to stay clear of 0b10 Research branches 1953 | -10/Exiles | Met EX-DEC 2143 | -10/Exiles | Discovered new exit (range 10) 2167 | -10/Exiles | Left Exiles lab with Chronowheel 2167 | -10/Exiles | Entered Mines 2814 | -9/Mines | Core integrity fell below 50% 2864 | -9/Mines | Assembled infested the area 2869 | -9/Mines | Assisted by a Guerilla fighting off Assembled 2985 | -9/Mines | Found the Drone Emporium 3002 | -9/Mines | Found Prototype Device 3191 | -9/Mines | Build established: Scavenger-Mutant 3218 | -9/Mines | Core integrity fell below 20% 3227 | -9/Mines | System corruption reached 10% 3257 | -9/Mines | Lost 4 parts (1p1n2w) 3278 | -9/Mines | Discovered new exit (range 11) 3358 | -9/Mines | Identified Sensor Drone Bay 3362 | -9/Mines | Identified Chronowheel 3362 | -9/Mines | Activated Chronowheel 3393 | -9/Mines | Entered Materials 3393 | -8/Materials | Evolved 4 slots: Propulsion x2, Utility x2 3447 | -8/Materials | Crushed by falling debris 3478 | -8/Materials | Lost 5 parts (1p1n3u) 3522 | -8/Materials | Build established: Mutant 3649 | -8/Materials | Repaired Corrupted Aluminum Leg 3759 | -8/Materials | System corruption reached 10% 3844 | -8/Materials | Core integrity fell below 50% 3918 | -8/Materials | Core integrity fell below 20% 3926 | -8/Materials | Lost 10 parts (1p5n1u3w) 3972 | -8/Materials | Destroyed by S-10 Pest with Light Assault Rifle Last Messages --------------- 03919_ S-10 Pest destroyed. 03919_ K-01 Serf destroyed. 03919_ Electrolysis Chamber disabled. 03921_ Extracted 100 matter. 03922_ Acquired Med. Matter Pod. 03925_ System corrupted: Energy discharge (-28). 03925_ Acquired Wheel. 03927_ S-10 Pest destroyed. 03929_ G-50 Soldier suffers critical hit (Burn). 03929_ G-50 Soldier destroyed. 03929_ Grenade Launcher destroyed. 03932_ Acquired Airjet. 03933_ Titanium Leg destroyed. 03943_ Acquired Lgt. EM Pulse Cannon. 03950_ System corrupted: Component data lost. 03959_ Wheel destroyed. 03959_ Acquired 225 matter. 03960_ Terminal disabled. 03963_ Acquired System Shield. 03966_ Acquired Hvy. Flail. Map ----- +----------------------------------------------------+ | """ # #?????????????????????????????? | | # #?????????????????????????????? | | " # #?????????????????????????????? | | # #?????????????????????????????? | | # #?????????????????????????????? | | ! # #?????????????????????????????? | | #/#### #?????????????????????????????? | | #?????????????????????????????? | | ### #?????????????????????????????? | | #?# #?????????????????????????????? | | # ##?# #?????????????????????????????? | | # #??# #?????????????????????????????? | | # #??#+#########?????????????????????? | | #/##?#! *#?????????????????????? | | #?# #?????????????????????? | | #?# #?????????????????????? | | "" #?# " " """ #?????????????????????? | | "" #?# " " "" #?????????????????????? | | "" #?# """ """ #?????????????????????? | | #?# #?????????????????????? | | #?# #?????########????????? | | #?#####+###########/ #????????? | | ######### # #????????? | | + # " #????????? | | ""###########+## + "T #????????? | | Y"#????????????# g# ""@ /#????????? | | ""#????????????# # s #????????? | | #????????????#g ########????????? | | #??????]?????# #???????????????? | | #????????????# #???????????????? | | #######???????????# #???????????????? | | # # #########+### ####????????????? | | [ #????????????? | | Y #????????????? | | # #############+#####??????????? | | % %[ #????# #??????????? | | # #????# #??????????? | | "" " #????# ]]] #??????????? | | # "" " " #????# ]] #??????????? | | ##"T "" ###### ] #??????????? | | ?#"" + + #??????????? | | ?#"" ###### #??????????? | | ?# #????# #??????????? | | ?###########????###########??????????? | | | | | | | | | | | | | +----------------------------------------------------+ Best States ------------- Heat Dissipation 31 Energy Generation 14 Energy Capacity 275 Matter Stores 399 Matter Capacity 400 Sight Range 16 Terrain Scan Density 10 ECM Strength 1 Additional Mass Support 6 Armor Coverage 80 Utility Shielding 33 Evasion (%) 55 Offensive Hacking 10 Defensive Hacking 10 Item Schematics ----------------- None Robot Schematics ------------------ None Fabricated ------------ Nothing Alien Tech Used ----------------- None Achievements -------------- Dynamic Key Challenges ------------ None Game ------ Seed XenonCouplerRecalibrator Manual? 0 Play Time 00:47:19 Cumulative 20.0 hours Start 2024.12.14 @ 10:54:49 End 2024.12.14 @ 11:49:25 Sessions 1 Manual Loads 0 Difficulty Rogue Special Mode None Game No. 30 Rogue 30 Adventurer 0 Explorer 0 Win Type - Total 0 Types 0/0/0/0/0/0/0/0/0 Lore% 8 Gallery% 17 Achievement% 17 Wizard Run 0 Options --------- Layout 0 ASCII 0 Keyboard 1 Movement Vi Keybinds 0 Fullscreen 1 Font 18/X11Bold Map View 76x50 Zoom Use 0% Tactical HUD 1 Map Filters NONE Filters NONE Steam 1 RUN: 4facc998-8b93-4fe1-96e4-22279c6a9785